[Event "*** Titled Tuesday Blitz"]
[Site "Chess.com"]
[Date "2018.10.02"]
[Round "1"]
[White "Sanan_Sjugirov"]
[Black "bourideu"]
[Result "1/2-1/2"]
[WhiteElo "2817"]
[BlackElo "2452"]
[TimeControl "180+2"]
[EndTime "13:13:53 PDT"]
[Termination "Game drawn - insufficient material"]

1. d4 {[%clk 0:03:01]} 1... Nf6 {[%clk 0:02:24.7]} 2. Nf3 {[%clk 0:02:55.5]}
2... g6 {[%clk 0:02:17.9]} 3. g3 {[%clk 0:02:48.6]} 3... Bg7 {[%clk 0:02:18.4]}
4. Bg2 {[%clk 0:02:49.8]} 4... O-O {[%clk 0:02:19.5]} 5. O-O {[%clk 0:02:47.7]}
5... d5 {[%clk 0:02:20.7]} 6. Nbd2 {[%clk 0:02:45.3]} 6... c5 {[%clk 0:02:12.8]}
7. dxc5 {[%clk 0:02:45]} 7... Na6 {[%clk 0:01:59.1]} 8. Nb3 {[%clk 0:02:45.6]}
8... Ne4 {[%clk 0:01:56.6]} 9. Ng5 {[%clk 0:02:45.1]} 9... Nxg5 {[%clk 0:01:04]}
10. Bxg5 {[%clk 0:02:47]} 10... Bxb2 {[%clk 0:01:05.1]} 11. Rb1 {[%clk
0:02:47.4]} 11... Bg7 {[%clk 0:01:06.2]} 12. Qxd5 {[%clk 0:02:42.8]} 12... Qxd5
{[%clk 0:01:05.4]} 13. Bxd5 {[%clk 0:02:44.7]} 13... Nb4 {[%clk 0:01:06.8]} 14.
Bf3 {[%clk 0:02:34.4]} 14... Nxa2 {[%clk 0:00:52.4]} 15. Bxe7 {[%clk 0:02:30.1]}
15... Re8 {[%clk 0:00:52.3]} 16. Bd6 {[%clk 0:02:29.1]} 16... Nc3 {[%clk
0:00:52.8]} 17. Rbe1 {[%clk 0:02:29.8]} 17... Ne4 {[%clk 0:00:31.4]} 18. Rd1
{[%clk 0:01:48.6]} 18... a5 {[%clk 0:00:22.9]} 19. Nd4 {[%clk 0:01:35.2]} 19...
Nc3 {[%clk 0:00:21.3]} 20. Rd3 {[%clk 0:01:26.8]} 20... Bxd4 {[%clk 0:00:22.1]}
21. Rxd4 {[%clk 0:01:27.9]} 21... Nxe2+ {[%clk 0:00:23.7]} 22. Bxe2 {[%clk
0:01:28.2]} 22... Rxe2 {[%clk 0:00:25.3]} 23. Ra1 {[%clk 0:01:06.6]} 23... Bd7
{[%clk 0:00:23.3]} 24. Bc7 {[%clk 0:00:50.1]} 24... Bc6 {[%clk 0:00:18.7]} 25.
Kf1 {[%clk 0:00:33.2]} 25... Rxc2 {[%clk 0:00:19]} 26. Rxa5 {[%clk 0:00:28]}
26... Rxa5 {[%clk 0:00:18.8]} 27. Bxa5 {[%clk 0:00:29.9]} 27... Rxc5 {[%clk
0:00:19.5]} 28. Bb4 {[%clk 0:00:26.4]} 28... Rc1+ {[%clk 0:00:19.3]} 29. Ke2
{[%clk 0:00:27.4]} 29... Rc2+ {[%clk 0:00:19.5]} 30. Ke3 {[%clk 0:00:28.2]}
30... f6 {[%clk 0:00:20.3]} 31. Rd8+ {[%clk 0:00:25.5]} 31... Kf7 {[%clk
0:00:21.4]} 32. Rh8 {[%clk 0:00:24.2]} 32... h5 {[%clk 0:00:21.7]} 33. h4 {[%clk
0:00:20.3]} 33... Ke6 {[%clk 0:00:22.1]} 34. Rg8 {[%clk 0:00:19.9]} 34... Kf5
{[%clk 0:00:22.2]} 35. Rf8 {[%clk 0:00:20.8]} 35... Rc4 {[%clk 0:00:22.8]} 36.
Ba5 {[%clk 0:00:18.5]} 36... Re4+ {[%clk 0:00:23]} 37. Kd3 {[%clk 0:00:18.4]}
37... Re8 {[%clk 0:00:11.1]} 38. Rf7 {[%clk 0:00:16.3]} 38... Ke6 {[%clk
0:00:10.1]} 39. Rg7 {[%clk 0:00:16]} 39... Kf5 {[%clk 0:00:09.6]} 40. Bc3 {[%clk
0:00:15.4]} 40... Rd8+ {[%clk 0:00:06.7]} 41. Ke3 {[%clk 0:00:15.4]} 41... Rd6
{[%clk 0:00:06.8]} 42. Rf7 {[%clk 0:00:14.5]} 42... Re6+ {[%clk 0:00:08.2]} 43.
Kd2 {[%clk 0:00:14.4]} 43... Rd6+ {[%clk 0:00:06]} 44. Ke3 {[%clk 0:00:15.2]}
44... Re6+ {[%clk 0:00:07.2]} 45. Kd4 {[%clk 0:00:14.9]} 45... Re4+ {[%clk
0:00:05.3]} 46. Kc5 {[%clk 0:00:15]} 46... Re6 {[%clk 0:00:06.5]} 47. Rf8 {[%clk
0:00:13.9]} 47... g5 {[%clk 0:00:07.2]} 48. hxg5 {[%clk 0:00:11.3]} 48... Kxg5
{[%clk 0:00:08.8]} 49. Kd4 {[%clk 0:00:09.5]} 49... Re4+ {[%clk 0:00:08.8]} 50.
Kd3 {[%clk 0:00:10.7]} 50... Re6 {[%clk 0:00:09.8]} 51. Bd4 {[%clk 0:00:10.9]}
51... Kg6 {[%clk 0:00:09.8]} 52. Rg8+ {[%clk 0:00:11.1]} 52... Kf7 {[%clk
0:00:10.2]} 53. Rh8 {[%clk 0:00:12.5]} 53... Be4+ {[%clk 0:00:10.3]} 54. Ke3
{[%clk 0:00:11]} 54... Bg6+ {[%clk 0:00:11.2]} 55. Kd2 {[%clk 0:00:07.7]} 55...
Rd6 {[%clk 0:00:07.3]} 56. Kc3 {[%clk 0:00:07.6]} 56... Rd7 {[%clk 0:00:08.4]}
57. Rb8 {[%clk 0:00:07]} 57... Be4 {[%clk 0:00:09.1]} 58. Be3 {[%clk 0:00:05.8]}
58... Kg6 {[%clk 0:00:10]} 59. Kb4 {[%clk 0:00:06.7]} 59... Kf5 {[%clk
0:00:11.1]} 60. Rh8 {[%clk 0:00:07.3]} 60... Kg4 {[%clk 0:00:11.8]} 61. Rf8
{[%clk 0:00:08.2]} 61... f5 {[%clk 0:00:09]} 62. Kc5 {[%clk 0:00:09.1]} 62...
Kf3 {[%clk 0:00:09.5]} 63. Rh8 {[%clk 0:00:09.3]} 63... Rd3 {[%clk 0:00:10.1]}
64. Rxh5 {[%clk 0:00:08.6]} 64... Rxe3 {[%clk 0:00:10.8]} 65. fxe3 {[%clk
0:00:09.6]} 65... Kxe3 {[%clk 0:00:12.1]} 66. Rg5 {[%clk 0:00:10.1]} 66... Kf3
{[%clk 0:00:12.5]} 67. Kd4 {[%clk 0:00:10.9]} 67... Kf2 {[%clk 0:00:05.7]} 68.
Rg7 {[%clk 0:00:10.2]} 68... Kf3 {[%clk 0:00:06.5]} 69. Ke5 {[%clk 0:00:11.1]}
69... Bc2 {[%clk 0:00:05.8]} 70. Rc7 {[%clk 0:00:09.3]} 70... Be4 {[%clk
0:00:06.8]} 71. Rc3+ {[%clk 0:00:10.2]} 71... Kg4 {[%clk 0:00:08.1]} 72. Rb3
{[%clk 0:00:10.6]} 72... Kg5 {[%clk 0:00:08.9]} 73. Kd4 {[%clk 0:00:10.6]} 73...
Kg4 {[%clk 0:00:09.3]} 74. Rc3 {[%clk 0:00:11.7]} 74... Bf3 {[%clk 0:00:09.7]}
75. Ke5 {[%clk 0:00:09.1]} 75... Be4 {[%clk 0:00:09.4]} 76. Ra3 {[%clk
0:00:07.9]} 76... Bf3 {[%clk 0:00:09.4]} 77. Kf6 {[%clk 0:00:07.8]} 77... Be4
{[%clk 0:00:09.3]} 78. Ke5 {[%clk 0:00:08.7]} 78... Bf3 {[%clk 0:00:10.5]} 79.
Rb3 {[%clk 0:00:09.8]} 79... Be4 {[%clk 0:00:11.8]} 80. Rc3 {[%clk 0:00:11.2]}
80... Bf3 {[%clk 0:00:12.6]} 81. Rc7 {[%clk 0:00:11.3]} 81... Be4 {[%clk
0:00:12.9]} 82. Rg7+ {[%clk 0:00:11.7]} 82... Kf3 {[%clk 0:00:14.1]} 83. Kd4
{[%clk 0:00:11.7]} 83... Kf2 {[%clk 0:00:14.6]} 84. g4 {[%clk 0:00:12.2]} 84...
fxg4 {[%clk 0:00:12.9]} 85. Kxe4 {[%clk 0:00:13.3]} 85... g3 {[%clk 0:00:14.3]}
86. Rf7+ {[%clk 0:00:12.3]} 86... Ke2 {[%clk 0:00:15.7]} 87. Rxb7 {[%clk
0:00:13.3]} 87... g2 {[%clk 0:00:16.4]} 88. Rb2+ {[%clk 0:00:13.5]} 88... Kf1
{[%clk 0:00:17.2]} 89. Kf3 {[%clk 0:00:12.2]} 89... g1=N+ {[%clk 0:00:14.5]} 90.
Ke3 {[%clk 0:00:12.8]} 90... Nh3 {[%clk 0:00:14.4]} 91. Rh2 {[%clk 0:00:13.5]}
91... Ng1 {[%clk 0:00:11.5]} 92. Rf2+ {[%clk 0:00:14.6]} 92... Ke1 {[%clk
0:00:12.4]} 93. Rf8 {[%clk 0:00:14.3]} 93... Ne2 {[%clk 0:00:10.4]} 94. Rg8
{[%clk 0:00:14]} 94... Kf1 {[%clk 0:00:10.3]} 95. Rf8+ {[%clk 0:00:15.1]} 95...
Ke1 {[%clk 0:00:11.2]} 96. Ra8 {[%clk 0:00:16.2]} 96... Nc1 {[%clk 0:00:06.2]}
97. Rc8 {[%clk 0:00:14.8]} 97... Kd1 {[%clk 0:00:07.2]} 98. Rc7 {[%clk
0:00:13.5]} 98... Nb3 {[%clk 0:00:04.1]} 99. Rc3 {[%clk 0:00:14]} 99... Nc1
{[%clk 0:00:04.9]} 100. Rc6 {[%clk 0:00:14.6]} 100... Nb3 {[%clk 0:00:05.3]}
101. Kd3 {[%clk 0:00:15.3]} 101... Nc1+ {[%clk 0:00:06.1]} 102. Ke4 {[%clk
0:00:12.8]} 102... Kd2 {[%clk 0:00:06.4]} 103. Rd6+ {[%clk 0:00:13.7]} 103...
Kc2 {[%clk 0:00:07.8]} 104. Ke3 {[%clk 0:00:14.6]} 104... Nb3 {[%clk 0:00:08.2]}
105. Rc6+ {[%clk 0:00:16.1]} 105... Kb2 {[%clk 0:00:09]} 106. Kd3 {[%clk
0:00:17.7]} 106... Nc1+ {[%clk 0:00:10.4]} 107. Kc4 {[%clk 0:00:17.2]} 107...
Kc2 {[%clk 0:00:11.1]} 108. Rh6 {[%clk 0:00:17.5]} 108... Kd2 {[%clk 0:00:11.7]}
109. Rh2+ {[%clk 0:00:18]} 109... Ne2 {[%clk 0:00:13]} 110. Rh3 {[%clk
0:00:19.6]} 110... Nf4 {[%clk 0:00:11.9]} 111. Rf3 {[%clk 0:00:19.6]} 111... Ne2
{[%clk 0:00:12.5]} 112. Rd3+ {[%clk 0:00:20.9]} 112... Ke1 {[%clk 0:00:12.7]}
113. Kd5 {[%clk 0:00:22.1]} 113... Nf4+ {[%clk 0:00:12.4]} 114. Ke4 {[%clk
0:00:24]} 114... Nxd3 {[%clk 0:00:13.6]} 1/2-1/2

[Event "*** Titled Tuesday Blitz"]
[Site "Chess.com"]
[Date "2018.10.02"]
[Round "1"]
[White "woodhy"]
[Black "topotun"]
[Result "1/2-1/2"]
[WhiteElo "2417"]
[BlackElo "2718"]
[TimeControl "180+2"]
[EndTime "13:13:58 PDT"]
[Termination "Game drawn by agreement"]

1. e4 {[%clk 0:02:32.9]} 1... c5 {[%clk 0:03:00.5]} 2. Nf3 {[%clk 0:02:33.5]}
2... e6 {[%clk 0:03:01.9]} 3. d4 {[%clk 0:02:33.9]} 3... cxd4 {[%clk 0:03:03.8]}
4. Nxd4 {[%clk 0:02:35.6]} 4... Nc6 {[%clk 0:03:05.1]} 5. c4 {[%clk 0:02:36.1]}
5... Nf6 {[%clk 0:03:05.7]} 6. Nc3 {[%clk 0:02:36.7]} 6... Bb4 {[%clk
0:03:06.7]} 7. Nxc6 {[%clk 0:02:37]} 7... bxc6 {[%clk 0:03:08.2]} 8. Bd3 {[%clk
0:02:38.2]} 8... e5 {[%clk 0:03:09.4]} 9. O-O {[%clk 0:02:38.6]} 9... O-O {[%clk
0:03:10.2]} 10. Qc2 {[%clk 0:02:37.5]} 10... d6 {[%clk 0:03:09.2]} 11. a3 {[%clk
0:02:38.6]} 11... Bc5 {[%clk 0:03:09.7]} 12. b4 {[%clk 0:02:39.7]} 12... Bd4
{[%clk 0:03:10.5]} 13. Bb2 {[%clk 0:02:40.8]} 13... a5 {[%clk 0:03:01.8]} 14. c5
{[%clk 0:02:36]} 14... axb4 {[%clk 0:02:50.4]} 15. axb4 {[%clk 0:02:37.9]} 15...
Rxa1 {[%clk 0:02:51.7]} 16. Rxa1 {[%clk 0:02:38.1]} 16... dxc5 {[%clk
0:02:53.6]} 17. bxc5 {[%clk 0:02:33.6]} 17... Bxc5 {[%clk 0:02:54.1]} 18. Na4
{[%clk 0:02:32.2]} 18... Bd4 {[%clk 0:02:49]} 19. Bxd4 {[%clk 0:02:24.3]} 19...
Qxd4 {[%clk 0:02:48.5]} 20. Rc1 {[%clk 0:02:25.8]} 20... Bd7 {[%clk 0:02:31.7]}
21. Nc5 {[%clk 0:02:20.3]} 21... Rd8 {[%clk 0:02:30.8]} 22. Be2 {[%clk
0:02:03.4]} 22... Qb4 {[%clk 0:02:04.7]} 23. Nxd7 {[%clk 0:02:01.2]} 23... Rxd7
{[%clk 0:01:51.1]} 24. Qxc6 {[%clk 0:02:01]} 24... h6 {[%clk 0:01:49.5]} 25. Bg4
{[%clk 0:01:42.4]} 25... Rd8 {[%clk 0:01:45.2]} 26. Bf3 {[%clk 0:01:37.3]} 26...
Qe7 {[%clk 0:01:36.6]} 27. g3 {[%clk 0:01:35.5]} 27... g6 {[%clk 0:01:37.4]} 28.
Kg2 {[%clk 0:01:35.1]} 28... Kg7 {[%clk 0:01:38.8]} 29. h4 {[%clk 0:01:36]}
29... Rd2 {[%clk 0:01:38.5]} 30. Qc5 {[%clk 0:01:32.6]} 30... Qe6 {[%clk
0:01:35.6]} 31. Rc2 {[%clk 0:01:31]} 31... Rd4 {[%clk 0:01:36.3]} 32. Re2 {[%clk
0:01:27.2]} 32... g5 {[%clk 0:01:37.7]} 33. hxg5 {[%clk 0:01:27.8]} 33... hxg5
{[%clk 0:01:39.6]} 34. Re3 {[%clk 0:01:22.2]} 34... g4 {[%clk 0:01:39.1]} 35.
Be2 {[%clk 0:01:21.2]} 35... Rxe4 {[%clk 0:01:35.5]} 36. Rxe4 {[%clk 0:01:13.8]}
36... Nxe4 {[%clk 0:01:37.4]} 37. Qe3 {[%clk 0:01:15.4]} 37... Nf6 {[%clk
0:01:36.8]} 38. Qg5+ {[%clk 0:01:15.7]} 38... Kf8 {[%clk 0:01:38.1]} 39. Kg1
{[%clk 0:01:12.2]} 39... Ke7 {[%clk 0:01:37.9]} 40. Kh2 {[%clk 0:01:08.5]} 40...
Kf8 {[%clk 0:01:30.8]} 41. Kg1 {[%clk 0:01:08.3]} 41... Ke8 {[%clk 0:01:27.4]}
42. Kh2 {[%clk 0:01:06.8]} 42... Ne4 {[%clk 0:01:20.6]} 43. Qg8+ {[%clk
0:01:02.7]} 43... Ke7 {[%clk 0:01:20.5]} 44. Bxg4 {[%clk 0:01:03.7]} 44... f5
{[%clk 0:01:17.7]} 45. Qg7+ {[%clk 0:01:04.2]} 45... Kd6 {[%clk 0:01:18]} 46.
Qf8+ {[%clk 0:01:05]} 46... Kc7 {[%clk 0:01:10.7]} 47. Bxf5 {[%clk 0:01:05.5]}
47... Qd5 {[%clk 0:01:01.9]} 48. Bxe4 {[%clk 0:00:41.8]} 48... Qxe4 {[%clk
0:01:02.9]} 49. Qe7+ {[%clk 0:00:41.6]} 49... Kc6 {[%clk 0:01:03.4]} 50. Qe6+
{[%clk 0:00:41.3]} 50... Kc5 {[%clk 0:01:03.3]} 51. Kh3 {[%clk 0:00:35.2]} 51...
Qd4 {[%clk 0:00:53.2]} 52. Qf5 {[%clk 0:00:31.7]} 52... Kd6 {[%clk 0:00:49.6]}
53. f4 {[%clk 0:00:29.9]} 53... exf4 {[%clk 0:00:48.5]} 54. gxf4 {[%clk
0:00:29]} 54... Qe3+ {[%clk 0:00:49.4]} 55. Kg4 {[%clk 0:00:30]} 55... Qg1+
{[%clk 0:00:47.4]} 56. Kh5 {[%clk 0:00:30.7]} 56... Qh2+ {[%clk 0:00:44.1]} 57.
Kg6 {[%clk 0:00:31.4]} 57... Qg3+ {[%clk 0:00:45.7]} 58. Kf7 {[%clk 0:00:32]}
58... Qb3+ {[%clk 0:00:46.4]} 59. Kg7 {[%clk 0:00:31.2]} 59... Qb7+ {[%clk
0:00:43.9]} 60. Qf7 {[%clk 0:00:32]} 60... Qf3 {[%clk 0:00:40.5]} 61. f5 {[%clk
0:00:29.7]} 61... Kc5 {[%clk 0:00:34.5]} 62. Qe7+ {[%clk 0:00:27.9]} 62... Kc4
{[%clk 0:00:32.2]} 63. Qe6+ {[%clk 0:00:26.7]} 63... Kc3 {[%clk 0:00:31.9]} 64.
Qe5+ {[%clk 0:00:26.1]} 64... Kc2 {[%clk 0:00:31.6]} 65. f6 {[%clk 0:00:27.5]}
65... Qg4+ {[%clk 0:00:31.6]} 66. Kf7 {[%clk 0:00:28.5]} 66... Qd7+ {[%clk
0:00:32.4]} 67. Qe7 {[%clk 0:00:29.6]} 67... Qd5+ {[%clk 0:00:33.4]} 68. Kg7
{[%clk 0:00:30.6]} 68... Qg5+ {[%clk 0:00:34.5]} 69. Kf8 {[%clk 0:00:31.9]}
69... Kb1 {[%clk 0:00:30.9]} 70. Qb7+ {[%clk 0:00:24.6]} 70... Ka2 {[%clk
0:00:28]} 71. Qa6+ {[%clk 0:00:24.5]} 71... Kb1 {[%clk 0:00:28.7]} 72. Qb6+
{[%clk 0:00:25.4]} 72... Ka2 {[%clk 0:00:29.2]} 73. f7 {[%clk 0:00:26.6]} 73...
Qe5 {[%clk 0:00:26.2]} 74. Qa6+ {[%clk 0:00:16.9]} 74... Kb1 {[%clk 0:00:27.2]}
75. Qf1+ {[%clk 0:00:16.1]} 75... Ka2 {[%clk 0:00:28]} 76. Qg2+ {[%clk
0:00:17.3]} 76... Kb1 {[%clk 0:00:29.1]} 77. Kg8 {[%clk 0:00:18.6]} 77... Qe6
{[%clk 0:00:30]} 78. Kg7 {[%clk 0:00:18.9]} 78... Qe5+ {[%clk 0:00:31]} 79. Kh7
{[%clk 0:00:19.6]} 79... Qe7 {[%clk 0:00:29.9]} 80. Qg6+ {[%clk 0:00:19.7]}
80... Ka2 {[%clk 0:00:30.5]} 81. Qc2+ {[%clk 0:00:19.9]} 81... Ka1 {[%clk
0:00:30.4]} 82. Qc3+ {[%clk 0:00:20.8]} 82... Ka2 {[%clk 0:00:31.6]} 83. Qc4+
{[%clk 0:00:21]} 83... Ka1 {[%clk 0:00:32.4]} 84. Qa4+ {[%clk 0:00:21.6]} 84...
Kb2 {[%clk 0:00:33.4]} 85. Qd4+ {[%clk 0:00:22.3]} 85... Ka2 {[%clk 0:00:34.6]}
86. Qf2+ {[%clk 0:00:23.1]} 86... Ka1 {[%clk 0:00:27]} 87. Kg6 {[%clk
0:00:22.8]} 87... Qf8 {[%clk 0:00:24.9]} 88. Qf6+ {[%clk 0:00:23.4]} 88... Ka2
{[%clk 0:00:25.4]} 89. Qe6+ {[%clk 0:00:24]} 89... Kb1 {[%clk 0:00:24.9]} 90.
Qe8 {[%clk 0:00:23.2]} 90... Qd6+ {[%clk 0:00:24.4]} 91. Kf5 {[%clk 0:00:21.1]}
91... Qd5+ {[%clk 0:00:23.1]} 92. Kf6 {[%clk 0:00:22.5]} 92... Qd6+ {[%clk
0:00:23.7]} 93. Qe6 {[%clk 0:00:22.9]} 93... Qf8 {[%clk 0:00:21.8]} 94. Qb6+
{[%clk 0:00:21.2]} 94... Ka2 {[%clk 0:00:21.7]} 95. Qa7+ {[%clk 0:00:22]} 95...
Kb1 {[%clk 0:00:22.1]} 96. Qb7+ {[%clk 0:00:22.4]} 96... Ka2 {[%clk 0:00:22.9]}
97. Qd5+ {[%clk 0:00:23.1]} 97... Kb1 {[%clk 0:00:23.5]} 98. Qd1+ {[%clk
0:00:24.2]} 98... Ka2 {[%clk 0:00:24.1]} 99. Qe2+ {[%clk 0:00:26.1]} 99... Kb1
{[%clk 0:00:24.8]} 100. Qe7 {[%clk 0:00:27.1]} 100... Qh6+ {[%clk 0:00:24]} 101.
Ke5 {[%clk 0:00:28.1]} 101... Qe3+ {[%clk 0:00:24.2]} 102. Kd6 {[%clk 0:00:29]}
102... Qa3+ {[%clk 0:00:24.2]} 103. Kd7 {[%clk 0:00:29.8]} 103... Qa7+ {[%clk
0:00:25.3]} 104. Ke8 {[%clk 0:00:30.4]} 104... Qb8+ {[%clk 0:00:25.4]} 105. Qd8
{[%clk 0:00:31.6]} 105... Qe5+ {[%clk 0:00:26.4]} 106. Kf8 {[%clk 0:00:32.4]}
106... Qh8+ {[%clk 0:00:26.7]} 107. Ke7 {[%clk 0:00:33.8]} 107... Qe5+ {[%clk
0:00:28.6]} 108. Kd7 {[%clk 0:00:33.4]} 108... Qd5+ {[%clk 0:00:29.8]} 109. Ke8
{[%clk 0:00:34.3]} 109... Qe5+ {[%clk 0:00:27.5]} 110. Qe7 {[%clk 0:00:33.6]}
110... Qb8+ {[%clk 0:00:25.4]} 111. Kd7 {[%clk 0:00:34.5]} 111... Qb7+ {[%clk
0:00:26.5]} 112. Ke6 {[%clk 0:00:35.8]} 112... Qe4+ {[%clk 0:00:27.5]} 113. Kf6
{[%clk 0:00:36.8]} 113... Qh4+ {[%clk 0:00:27.4]} 114. Ke6 {[%clk 0:00:36.8]}
114... Qe4+ {[%clk 0:00:28.4]} 115. Kd7 {[%clk 0:00:36.4]} 115... Qb7+ {[%clk
0:00:29.1]} 116. Kd6 {[%clk 0:00:36.8]} 116... Qb4+ {[%clk 0:00:29.8]} 1/2-1/2

[Event "*** Titled Tuesday Blitz"]
[Site "Chess.com"]
[Date "2018.10.02"]
[Round "2"]
[White "GMBenjaminFinegold"]
[Black "albi1999"]
[Result "1-0"]
[WhiteElo "2286"]
[BlackElo "2399"]
[TimeControl "180+2"]
[EndTime "13:16:26 PDT"]
[Termination "GMBenjaminFinegold won by resignation"]

1. d4 {[%clk 0:03:01.9]} 1... d5 {[%clk 0:02:49.1]} 2. c4 {[%clk 0:03:02.3]}
2... e6 {[%clk 0:02:48.1]} 3. Nc3 {[%clk 0:03:02.6]} 3... Nf6 {[%clk 0:02:41.8]}
4. Bg5 {[%clk 0:03:02.2]} 4... Be7 {[%clk 0:02:39]} 5. e3 {[%clk 0:03:02.1]}
5... Nbd7 {[%clk 0:02:39.8]} 6. Nf3 {[%clk 0:03:02]} 6... h6 {[%clk 0:02:41.2]}
7. Bh4 {[%clk 0:02:59.4]} 7... O-O {[%clk 0:02:42.4]} 8. Qc2 {[%clk 0:02:56.3]}
8... c5 {[%clk 0:02:42.6]} 9. cxd5 {[%clk 0:02:57]} 9... Nxd5 {[%clk 0:02:42.4]}
10. Bxe7 {[%clk 0:02:58.1]} 10... Qxe7 {[%clk 0:02:44.3]} 11. Nxd5 {[%clk
0:02:58.9]} 11... exd5 {[%clk 0:02:45.8]} 12. dxc5 {[%clk 0:03:00.1]} 12... Nxc5
{[%clk 0:02:47.1]} 13. Bd3 {[%clk 0:03:01.4]} 13... Bg4 {[%clk 0:02:46.4]} 14.
Nd4 {[%clk 0:03:01.3]} 14... Rac8 {[%clk 0:02:44.3]} 15. O-O {[%clk 0:03:00.9]}
15... Ne6 {[%clk 0:02:45.3]} 16. Qa4 {[%clk 0:02:49]} 16... Nc5 {[%clk
0:02:39.6]} 17. Qa3 {[%clk 0:02:48]} 17... Qf6 {[%clk 0:02:33.8]} 18. Rac1
{[%clk 0:02:46.1]} 18... a6 {[%clk 0:02:33.2]} 19. Rxc5 {[%clk 0:02:45.5]} 1-0

[Event "*** Titled Tuesday Blitz"]
[Site "Chess.com"]
[Date "2018.10.02"]
[Round "2"]
[White "aquaticpineapples"]
[Black "Ziyamammadov"]
[Result "1-0"]
[WhiteElo "2029"]
[BlackElo "1909"]
[TimeControl "180+2"]
[EndTime "13:18:51 PDT"]
[Termination "aquaticpineapples won by resignation"]

1. d4 {[%clk 0:03:01.9]} 1... d5 {[%clk 0:02:57.4]} 2. Nf3 {[%clk 0:03:02.8]}
2... e6 {[%clk 0:02:56]} 3. e3 {[%clk 0:03:01.5]} 3... c5 {[%clk 0:02:55.7]} 4.
b3 {[%clk 0:03:01]} 4... Nc6 {[%clk 0:02:54.6]} 5. a3 {[%clk 0:03:01.1]} 5...
Nf6 {[%clk 0:02:55.3]} 6. Bb2 {[%clk 0:03:01.3]} 6... Bd6 {[%clk 0:02:52.8]} 7.
Bd3 {[%clk 0:03:01.7]} 7... O-O {[%clk 0:02:50.8]} 8. O-O {[%clk 0:03:02.6]}
8... b6 {[%clk 0:02:44.5]} 9. Nbd2 {[%clk 0:03:02.8]} 9... Bb7 {[%clk
0:02:41.2]} 10. Ne5 {[%clk 0:03:03.3]} 10... cxd4 {[%clk 0:02:14.7]} 11. exd4
{[%clk 0:03:00]} 11... Nd7 {[%clk 0:01:41]} 12. Qe2 {[%clk 0:02:54.4]} 12... f6
{[%clk 0:00:40.1]} 13. Nxc6 {[%clk 0:02:52.9]} 13... Qc7 {[%clk 0:00:29.5]} 14.
Qxe6+ {[%clk 0:02:46.6]} 14... Kh8 {[%clk 0:00:28.7]} 15. Nb4 {[%clk 0:02:45.2]}
15... Bxb4 {[%clk 0:00:04.6]} 16. axb4 {[%clk 0:02:43.6]} 16... Rae8 {[%clk
0:00:06.5]} 17. Qh3 {[%clk 0:02:42.7]} 17... h6 {[%clk 0:00:06.3]} 18. Qf5
{[%clk 0:02:41.9]} 18... Kg8 {[%clk 0:00:05.2]} 1-0

[Event "*** Titled Tuesday Blitz"]
[Site "Chess.com"]
[Date "2018.10.02"]
[Round "2"]
[White "Indianlad"]
[Black "017290"]
[Result "1-0"]
[WhiteElo "2810"]
[BlackElo "2540"]
[TimeControl "180+2"]
[EndTime "13:18:53 PDT"]
[Termination "Indianlad won by resignation"]

1. d4 {[%clk 0:03:01.9]} 1... Nf6 {[%clk 0:02:58.9]} 2. c4 {[%clk 0:03:03.4]}
2... e6 {[%clk 0:02:59.3]} 3. g3 {[%clk 0:03:04.9]} 3... d5 {[%clk 0:02:54.8]}
4. Bg2 {[%clk 0:03:05.9]} 4... c5 {[%clk 0:02:55.2]} 5. cxd5 {[%clk 0:03:04.9]}
5... exd5 {[%clk 0:02:55.6]} 6. Nf3 {[%clk 0:03:05.9]} 6... Nc6 {[%clk
0:02:56.3]} 7. O-O {[%clk 0:03:07.5]} 7... Be6 {[%clk 0:02:55.1]} 8. b3 {[%clk
0:03:08.6]} 8... h6 {[%clk 0:02:55.1]} 9. Nc3 {[%clk 0:03:07.2]} 9... Be7 {[%clk
0:02:48.1]} 10. Bb2 {[%clk 0:03:08.1]} 10... O-O {[%clk 0:02:48.3]} 11. dxc5
{[%clk 0:03:09.6]} 11... Bxc5 {[%clk 0:02:49]} 12. Rc1 {[%clk 0:03:11.2]} 12...
Rc8 {[%clk 0:02:42.2]} 13. Na4 {[%clk 0:03:12]} 13... Be7 {[%clk 0:02:40.1]} 14.
Nc5 {[%clk 0:03:13.5]} 14... b6 {[%clk 0:02:25.2]} 15. Nxe6 {[%clk 0:03:13.6]}
15... fxe6 {[%clk 0:02:27.1]} 16. Bh3 {[%clk 0:03:08.9]} 16... Qd6 {[%clk
0:02:26.6]} 17. Nd4 {[%clk 0:02:41.9]} 17... Nxd4 {[%clk 0:02:23.4]} 18. Qxd4
{[%clk 0:02:43.8]} 18... Ne8 {[%clk 0:01:27.2]} 19. Rxc8 {[%clk 0:02:42.2]}
19... Bf6 {[%clk 0:01:08]} 20. Qd2 {[%clk 0:02:40.8]} 20... e5 {[%clk
0:01:08.8]} 21. Qc2 {[%clk 0:02:36]} 21... e4 {[%clk 0:01:04.4]} 22. Bxf6 {[%clk
0:02:33.5]} 22... Qxf6 {[%clk 0:01:06.3]} 23. Qc6 {[%clk 0:02:34.2]} 23... Qe5
{[%clk 0:01:02.8]} 24. Be6+ {[%clk 0:02:35.1]} 24... Kh7 {[%clk 0:01:01.8]} 25.
Rxe8 {[%clk 0:02:36.5]} 25... Rf6 {[%clk 0:01:01]} 26. Bg8+ {[%clk 0:02:34.2]}
1-0